Workbook

Sheet horses (hidden)
A1: HORSE | B1: SPEED (fastest horses get up to about 20 meters / second) | C1: STAMINA | D1: STRATEGY | E1: estimated finish time | G1: for distance: uses 1 stamina per turn but max speed is 1/3. at .2 race completion, uses 3 stamina per turn at max speed until run out of stamina then goes to 1/4 speed
A2: D.J. | B2: 22 | C2: 72 | D2: S | E2: 48.72727273 | G2: for sprinter: from start uses 3 stamina per turn at max speed and goes to 1/4 speed when runs out of stamina
A3: Abaccus | B3: 20 | C3: 83 | D3: S | E3: 52.33333333 | G3: each turn: move distance equal to random between (1,speed)
A4: Abbervail Dream | B4: 26 | C4: 91 | D4: S | E4: 31.20512821 | G4: distance of races:
A5: Abby | B5: 25 | C5: 70 | D5: S | E5: 40.66666667 | G5: quarter race: 400 m | I5: *we will only use this race type
A6: Abdullah | B6: 21 | C6: 76 | D6: S | E6: 50.85714286 | G6: pleasure ride endurance race: 16000 m
A7: Abercrombie | B7: 15 | C7: 90 | D7: S | E7: 76.66666667 | G7: non-competitive trail race: 40000 m
A8: Able Master | B8: 18 | C8: 96 | D8: S | E8: 56.88888889 | G8: competitive trail race: 64000 m
A9: Above and Beyond | B9: 27 | C9: 71 | D9: S | E9: 35.59259259 | G9: endurace race: 100000 m
A10: Above The Clouds | B10: 26 | C10: 108 | D10: S | E10: 25.53846154
A11: Abracadabra | B11: 16 | C11: 77 | D11: S | E11: 74.33333333 | G11: =MIN(B:B) -> 10 | H11: =MIN(C:C) -> 40 | I11: =COUNTIF(D:D,"S") -> 3609 | J11: =MIN(E:E) -> 13.80952381
A12: Absent | B12: 17 | C12: 96 | D12: S | E12: 62.11764706 | G12: =MAX(B:B) -> 28 | H12: =MAX(C:C) -> 130 | I12: =COUNTA(D:D)-1 -> 4763 | J12: =MAX(E:E) -> 146.6666667
A13: Absolute Bullet Proof | B13: 27 | C13: 92 | D13: D | E13: 28.59259259 | G13: =AVERAGE(B:B) -> 20.791308 | H13: =AVERAGE(C:C) -> 87.99160193 | I13: =I11/I12 -> 0.7577157254 | J13: =AVERAGE(E:E) -> 49.65747565
A14: Abu | B14: 19 | C14: 109 | D14: D | E14: 47.87719298 | I14: S
A15: Acapella | B15: 20 | C15: 69 | D15: S | E15: 57
A16: Ace | B16: 15 | C16: 98 | D16: D | E16: 74
A17: Ace of Spades | B17: 18 | C17: 92 | D17: D | E17: 58.22222222
A18: Acer | B18: 19 | C18: 89 | D18: S | E18: 54.54385965 | G18: NUMBER:
A19: Aces Diamond Rio | B19: 22 | C19: 67 | D19: S | E19: 50.39393939 | G19: 4763
A20: Acker Bilk | B20: 21 | C20: 79 | D20: S | E20: 49.85714286
A21: Acorn | B21: 22 | C21: 80 | D21: S | E21: 46.06060606
A22: Acromantula | B22: 26 | C22: 99 | D22: D | E22: 28.53846154
A23: Ad Alta | B23: 16 | C23: 100 | D23: D | E23: 66.66666667
A24: Adagio | B24: 27 | C24: 92 | D24: D | E24: 28.59259259
A25: Adat | B25: 18 | C25: 116 | D25: D | E25: 50.22222222
A26: Addie Over | B26: 21 | C26: 78 | D26: S | E26: 50.19047619
A27: Admiral | B27: 25 | C27: 105 | D27: D | E27: 29
A28: Adrian | B28: 27 | C28: 62 | D28: S | E28: 38.59259259
A29: Aeris | B29: 22 | C29: 119 | D29: D | E29: 33.06060606
A30: Aerosmith | B30: 19 | C30: 83 | D30: S | E30: 56.54385965
A31: Aferditie | B31: 16 | C31: 113 | D31: D | E31: 62.33333333
A32: Africa | B32: 26 | C32: 93 | D32: S | E32: 30.53846154
A33: Afterglow | B33: 19 | C33: 95 | D33: D | E33: 52.54385965
A34: Afternoon Delight | B34: 27 | C34: 92 | D34: D | E34: 28.59259259
A35: Aftershock | B35: 19 | C35: 121 | D35: D | E35: 43.87719298
A36: Agape | B36: 15 | C36: 87 | D36: S | E36: 77.66666667
A37: Agent 007 | B37: 15 | C37: 71 | D37: S | E37: 83
A38: Aggie's Diamond | B38: 21 | C38: 84 | D38: S | E38: 48.19047619
A39: Ahlerich | B39: 27 | C39: 92 | D39: D | E39: 28.59259259
A40: Ahwa | B40: 26 | C40: 69 | D40: S | E40: 38.53846154
A41: Ai | B41: 22 | C41: 74 | D41: S | E41: 48.06060606
A42: Aida | B42: 27 | C42: 91 | D42: S | E42: 28.92592593
A43: Aidan | B43: 16 | C43: 106 | D43: D | E43: 64.66666667
A44: Aiko | B44: 27 | C44: 89 | D44: S | E44: 29.59259259
A45: Ain't Misbehavin | B45: 19 | C45: 90 | D45: S | E45: 54.21052632
A46: Air | B46: 21 | C46: 83 | D46: S | E46: 48.52380952
A47: Air Born | B47: 19 | C47: 99 | D47: D | E47: 51.21052632
A48: Air Express | B48: 20 | C48: 64 | D48: S | E48: 58.66666667
A49: Airborne Magic | B49: 16 | C49: 75 | D49: S | E49: 75
A50: Aitch | B50: 17 | C50: 84 | D50: S | E50: 66.11764706
A51: Akasha | B51: 23 | C51: 81 | D51: S | E51: 42.56521739
A52: Akhademy | B52: 24 | C52: 99 | D52: D | E52: 33.66666667
A53: Al | B53: 21 | C53: 61 | D53: S | E53: 55.85714286
A54: Al Akbar | B54: 20 | C54: 102 | D54: D | E54: 46
A55: Alacazam | B55: 22 | C55: 75 | D55: S | E55: 47.72727273
A56: Aladdin | B56: 19 | C56: 85 | D56: S | E56: 55.87719298
A57: Alanah | B57: 18 | C57: 100 | D57: D | E57: 55.55555556
A58: Alaska | B58: 15 | C58: 75 | D58: S | E58: 81.66666667
A59: Alberton Star | B59: 22 | C59: 98 | D59: D | E59: 40.06060606
A60: Alcatraz | B60: 27 | C60: 72 | D60: S | E60: 35.25925926
A61: Alex | B61: 20 | C61: 84 | D61: S | E61: 52
A62: Alexa | B62: 19 | C62: 119 | D62: D | E62: 44.54385965
A63: Alexander the Great | B63: 25 | C63: 100 | D63: S | E63: 30.66666667
A64: Alfie | B64: 21 | C64: 116 | D64: S | E64: 37.52380952
A65: Ali | B65: 17 | C65: 63 | D65: S | E65: 73.11764706
A66: Ali Baba | B66: 26 | C66: 96 | D66: D | E66: 29.53846154
A67: Alia Kazam | B67: 27 | C67: 89 | D67: S | E67: 29.59259259
A68: Alizay | B68: 21 | C68: 87 | D68: S | E68: 47.19047619
A69: All My Heart | B69: 21 | C69: 99 | D69: S | E69: 43.19047619
A70: All Natural | B70: 17 | C70: 87 | D70: S | E70: 65.11764706
A71: All that Jazz | B71: 16 | C71: 80 | D71: S | E71: 73.33333333
A72: Alladin's Treasure | B72: 22 | C72: 70 | D72: S | E72: 49.39393939
A73: All-American Rocket | B73: 19 | C73: 123 | D73: D | E73: 43.21052632
A74: Allegra | B74: 21 | C74: 82 | D74: S | E74: 48.85714286
A75: Allegria | B75: 18 | C75: 95 | D75: S | E75: 57.22222222
A76: Allegro | B76: 25 | C76: 73 | D76: S | E76: 39.66666667
A77: Allison Fast | B77: 21 | C77: 85 | D77: S | E77: 47.85714286
A78: Allouette | B78: 19 | C78: 102 | D78: S | E78: 50.21052632
A79: Alloverdaplace | B79: 22 | C79: 101 | D79: D | E79: 39.06060606
A80: Allstar | B80: 20 | C80: 88 | D80: S | E80: 50.66666667
A81: Ally | B81: 18 | C81: 98 | D81: D | E81: 56.22222222
A82: Almonds | B82: 16 | C82: 76 | D82: S | E82: 74.66666667
A83: Almost Illegal | B83: 22 | C83: 93 | D83: D | E83: 41.72727273
A84: Alomar | B84: 19 | C84: 94 | D84: D | E84: 52.87719298
A85: Alotastuff | B85: 26 | C85: 92 | D85: D | E85: 30.87179487
A86: Alouette | B86: 20 | C86: 72 | D86: S | E86: 56
A87: Altair | B87: 15 | C87: 74 | D87: S | E87: 82
A88: Altivo | B88: 19 | C88: 97 | D88: S | E88: 51.87719298
A89: Alto Vito | B89: 19 | C89: 59 | D89: S | E89: 64.54385965
A90: Always | B90: 24 | C90: 84 | D90: S | E90: 38.66666667
A91: Always A Dot | B91: 22 | C91: 100 | D91: D | E91: 39.39393939
A92: Amadeus | B92: 20 | C92: 87 | D92: S | E92: 51
A93: Amanda | B93: 15 | C93: 90 | D93: S | E93: 76.66666667
A94: Amaretto | B94: 17 | C94: 90 | D94: S | E94: 64.11764706
A95: Amarillo Rose | B95: 16 | C95: 113 | D95: D | E95: 62.33333333
A96: Amazing | B96: 20 | C96: 68 | D96: S | E96: 57.33333333
A97: Amazing Grace | B97: 19 | C97: 101 | D97: S | E97: 50.54385965
A98: Amazon | B98: 27 | C98: 105 | D98: S | E98: 24.25925926
A99: Ambara | B99: 19 | C99: 123 | D99: D | E99: 43.21052632
A100: Ambassador | B100: 21 | C100: 99 | D100: D | E100: 43.19047619
A101: Amber | B101: 17 | C101: 110 | D101: D | E101: 57.45098039
A102: Amber Dancer | B102: 20 | C102: 74 | D102: S | E102: 55.33333333
A103: Ambition | B103: 17 | C103: 85 | D103: S | E103: 65.78431373
A104: Ambitious | B104: 24 | C104: 123 | D104: S | E104: 25.66666667
A105: Ameera | B105: 20 | C105: 79 | D105: S | E105: 53.66666667
A106: American Beauty | B106: 17 | C106: 123 | D106: D | E106: 53.11764706
A107: American Pie | B107: 22 | C107: 86 | D107: S | E107: 44.06060606
A108: Amethyst | B108: 17 | C108: 93 | D108: S | E108: 63.11764706
A109: Amfortas | B109: 23 | C109: 108 | D109: D | E109: 33.56521739
A110: Amigo | B110: 20 | C110: 60 | D110: S | E110: 60
A111: Amulet | B111: 16 | C111: 63 | D111: S | E111: 79
A112: Amy | B112: 23 | C112: 101 | D112: S | E112: 35.89855072
A113: An Affair to Remember | B113: 20 | C113: 101 | D113: S | E113: 46.33333333
A114: Anakin | B114: 15 | C114: 88 | D114: S | E114: 77.33333333
A115: Ananda | B115: 15 | C115: 76 | D115: S | E115: 81.33333333
A116: Anchor, | B116: 17 | C116: 115 | D116: S | E116: 55.78431373
A117: Ancient Orange | B117: 17 | C117: 87 | D117: S | E117: 65.11764706
A118: Andale | B118: 21 | C118: 77 | D118: S | E118: 50.52380952
A119: Andrejana | B119: 25 | C119: 69 | D119: S | E119: 41
A120: Angel | B120: 22 | C120: 75 | D120: S | E120: 47.72727273
A121: Angel Eyes | B121: 24 | C121: 92 | D121: S | E121: 36
A122: Angel of Mine | B122: 15 | C122: 82 | D122: S | E122: 79.33333333
A123: Angelfire | B123: 19 | C123: 96 | D123: D | E123: 52.21052632
A124: Angelina | B124: 16 | C124: 75 | D124: S | E124: 75
A125: Angelo | B125: 24 | C125: 84 | D125: S | E125: 38.66666667
A126: Angel's Glory | B126: 24 | C126: 65 | D126: S | E126: 45
A127: Angle | B127: 19 | C127: 63 | D127: S | E127: 63.21052632
A128: Anita | B128: 17 | C128: 105 | D128: D | E128: 59.11764706
A129: Anna Bell | B129: 27 | C129: 66 | D129: S | E129: 37.25925926
A130: Annabel | B130: 16 | C130: 74 | D130: S | E130: 75.33333333
A131: Annabelle | B131: 19 | C131: 82 | D131: S | E131: 56.87719298
A132: Annie | B132: 23 | C132: 114 | D132: S | E132: 31.56521739
A133: Annie Oakley | B133: 20 | C133: 77 | D133: S | E133: 54.33333333
A134: Ann's Misty Gal | B134: 25 | C134: 111 | D134: S | E134: 27
A135: Another Chance | B135: 24 | C135: 85 | D135: S | E135: 38.33333333
A136: Answered Prayers | B136: 19 | C136: 79 | D136: S | E136: 57.87719298
A137: Anthem | B137: 25 | C137: 85 | D137: S | E137: 35.66666667
A138: Anthony | B138: 22 | C138: 66 | D138: S | E138: 50.72727273
A139: Anton | B139: 20 | C139: 69 | D139: S | E139: 57
A140: Any Victory Will Do | B140: 22 | C140: 72 | D140: S | E140: 48.72727273
A141: Anziyan | B141: 25 | C141: 86 | D141: S | E141: 35.33333333
A142: Apache | B142: 20 | C142: 90 | D142: S | E142: 50
A143: Apache Clouds | B143: 21 | C143: 71 | D143: S | E143: 52.52380952
A144: Apache Outlaw | B144: 22 | C144: 102 | D144: D | E144: 38.72727273
A145: Apache Sunrise | B145: 23 | C145: 123 | D145: D | E145: 28.56521739
A146: Aphrodite | B146: 19 | C146: 100 | D146: S | E146: 50.87719298
A147: Apollo | B147: 20 | C147: 95 | D147: S | E147: 48.33333333
A148: Apollo's Chariot | B148: 22 | C148: 98 | D148: D | E148: 40.06060606
A149: Appalooa | B149: 19 | C149: 93 | D149: S | E149: 53.21052632
A150: Appichi | B150: 21 | C150: 71 | D150: S | E150: 52.52380952
A151: Applause | B151: 22 | C151: 76 | D151: S | E151: 47.39393939
A152: Apple | B152: 22 | C152: 80 | D152: S | E152: 46.06060606
A153: Apple Butter | B153: 22 | C153: 74 | D153: S | E153: 48.06060606
A154: Apple Candy | B154: 16 | C154: 100 | D154: D | E154: 66.66666667
A155: Apple Dew | B155: 20 | C155: 106 | D155: D | E155: 44.66666667
A156: Applejack | B156: 21 | C156: 91 | D156: S | E156: 45.85714286
A157: AppleJacks | B157: 27 | C157: 93 | D157: D | E157: 28.25925926
A158: Applejax | B158: 20 | C158: 112 | D158: D | E158: 42.66666667
A159: Apples | B159: 21 | C159: 79 | D159: S | E159: 49.85714286
A160: April | B160: 22 | C160: 84 | D160: S | E160: 44.72727273
A161: April Babe | B161: 15 | C161: 91 | D161: S | E161: 76.33333333
A162: April Showers | B162: 22 | C162: 117 | D162: D | E162: 33.72727273
A163: Aqua | B163: 25 | C163: 69 | D163: S | E163: 41
A164: Aquarius | B164: 20 | C164: 84 | D164: S | E164: 52
A165: Arabella | B165: 19 | C165: 60 | D165: S | E165: 64.21052632
A166: Arabian Dancer | B166: 22 | C166: 66 | D166: S | E166: 50.72727273
A167: Arabian Knight | B167: 19 | C167: 93 | D167: D | E167: 53.21052632
A168: Arabian Night | B168: 26 | C168: 67 | D168: S | E168: 39.20512821
A169: Aragon | B169: 15 | C169: 117 | D169: D | E169: 67.66666667
A170: Aramis | B170: 17 | C170: 105 | D170: D | E170: 59.11764706
A171: Arbor ann | B171: 20 | C171: 67 | D171: S | E171: 57.66666667
A172: Arcadia | B172: 18 | C172: 61 | D172: S | E172: 68.55555556
A173: Archer | B173: 21 | C173: 85 | D173: S | E173: 47.85714286
A174: Archie | B174: 16 | C174: 95 | D174: D | E174: 68.33333333
A175: Archimedes | B175: 17 | C175: 95 | D175: D | E175: 62.45098039
A176: Arctic Sun | B176: 26 | C176: 115 | D176: S | E176: 23.20512821
A177: Areo | B177: 21 | C177: 86 | D177: S | E177: 47.52380952
A178: Argo | B178: 21 | C178: 80 | D178: S | E178: 49.52380952
A179: Ariadne | B179: 26 | C179: 101 | D179: D | E179: 27.87179487
A180: Arial | B180: 20 | C180: 99 | D180: S | E180: 47
A181: Aries | B181: 27 | C181: 60 | D181: S | E181: 39.25925926
A182: Aristo | B182: 18 | C182: 96 | D182: S | E182: 56.88888889
A183: Aristotle | B183: 22 | C183: 68 | D183: S | E183: 50.06060606
A184: Arizona | B184: 19 | C184: 91 | D184: S | E184: 53.87719298
A185: Arizona Sunset | B185: 25 | C185: 88 | D185: S | E185: 34.66666667
A186: Armand | B186: 15 | C186: 81 | D186: S | E186: 79.66666667
A187: Armed & Dangerous | B187: 27 | C187: 66 | D187: S | E187: 37.25925926
A188: Armful of Tiger Lilies | B188: 19 | C188: 89 | D188: S | E188: 54.54385965
A189: Arnica de la Barre | B189: 19 | C189: 85 | D189: S | E189: 55.87719298
A190: Arnie | B190: 16 | C190: 92 | D190: S | E190: 69.33333333
A191: Arrow | B191: 26 | C191: 77 | D191: S | E191: 35.87179487
A192: Artemis | B192: 25 | C192: 89 | D192: S | E192: 34.33333333
A193: Artex | B193: 21 | C193: 110 | D193: D | E193: 39.52380952
A194: Arthur | B194: 22 | C194: 103 | D194: S | E194: 38.39393939
A195: Artist | B195: 22 | C195: 119 | D195: D | E195: 33.06060606
A196: Artoo | B196: 16 | C196: 80 | D196: S | E196: 73.33333333
A197: As Good As it Gets | B197: 19 | C197: 97 | D197: D | E197: 51.87719298
A198: Asgard | B198: 18 | C198: 64 | D198: S | E198: 67.55555556
A199: Ash | B199: 26 | C199: 87 | D199: S | E199: 32.53846154
A200: Ash Kalini | B200: 16 | C200: 82 | D200: S | E200: 72.66666667
... 4564 more rows

Sheet the race
A1: horse | B1: stamina remaining | C1: distance | D1: strategy | E1: speed | F1: stamina | G1: stamina cost | H1: move next turn | I1: new stamina | J1: new distance | L1: new horses | M1: race times | N1: race over? | P1: expected time | X1: APPLIED AGAINST ODDS | Y1: min roll | Z1: AGAINST ODDS?
A2: Perfect Winter | B2: 0 | C2: 400 | D2: =VLOOKUP(A2,horses!A:D,4,FALSE) -> S | E2: =VLOOKUP(A2,horses!A:D,2,FALSE) -> 19 | F2: =VLOOKUP(A2,horses!A:D,3,FALSE) -> 85 | G2: =IF(AND(D2="D",C2<80),1,MIN(3,B2)) -> 0 | H2: =IF(G2=0,RANDBETWEEN(Y2,ROUNDUP(E2*0.25,0)),RANDBETWEEN(Y2,ROUNDUP(E2*G2/3,0))) -> 2 | I2: =B2-G2 -> 0 | J2: =MIN(400,C2+H2+IF(X2=1,ROUNDUP(SQRT(B20),0),0)) -> 400 | L2: =INDIRECT(ADDRESS(RANDBETWEEN(2,horses!$G$19),1,1,1,"horses"),TRUE) -> Pheonix | M2: 79.8 | N2: =IF(COUNTIF(M2:M9,">0")=8,1,0) -> 1 | P2: =VLOOKUP(A2,horses!A:E,5,FALSE) -> 55.87719298 | R2: =STANDARDIZE(P2,$P$11,$P$12) -> 0.4021318312 | S2: =NORMSDIST(R2) -> 0.6562064962 | T2: =1-S2 -> 0.3437935038 | U2: =T2/SUM($T$2:$T$9) -> 0.0848493381 | V2: =ROUNDUP(1/U2,0) -> 12 | W2: =ROUNDUP(2*V2/MIN($V$2:$V$9),0)+X2 -> 5 | X2: 0 | Y2: =IF(B20>25,4,IF(B20>10,3,1)) -> 1 | Z2: =IF(RAND()<1/B20,1,0) -> 0
A3: Foxy | B3: 0 | C3: 400 | D3: =VLOOKUP(A3,horses!A:D,4,FALSE) -> D | E3: =VLOOKUP(A3,horses!A:D,2,FALSE) -> 21 | F3: =VLOOKUP(A3,horses!A:D,3,FALSE) -> 95 | G3: 0 | H3: =IF(G3=0,RANDBETWEEN(Y3,ROUNDUP(E3*0.25,0)),RANDBETWEEN(Y3,ROUNDUP(E3*G3/3,0))) -> 1 | I3: =B3-G3 -> 0 | J3: =MIN(400,C3+H3+IF(X3=1,ROUNDUP(SQRT(B21),0),0)) -> 400 | L3: =INDIRECT(ADDRESS(RANDBETWEEN(2,horses!$G$19),1,1,1,"horses"),TRUE) -> Zorro Garlic | M3: 58 | P3: =VLOOKUP(A3,horses!A:E,5,FALSE) -> 44.52380952 | R3: =STANDARDIZE(P3,$P$11,$P$12) -> -0.2747821433 | S3: =NORMSDIST(R3) -> 0.3917418089 | T3: =1-S3 -> 0.6082581911 | U3: =T3/SUM($T$2:$T$9) -> 0.1501200701 | V3: =ROUNDUP(1/U3,0) -> 7 | W3: =ROUNDUP(2*V3/MIN($V$2:$V$9),0)+X3 -> 3 | X3: 0 | Y3: =IF(B21>25,4,IF(B21>10,3,1)) -> 1 | Z3: =IF(RAND()<1/B21,1,0) -> 0
A4: Arial | B4: 0 | C4: 400 | D4: =VLOOKUP(A4,horses!A:D,4,FALSE) -> S | E4: =VLOOKUP(A4,horses!A:D,2,FALSE) -> 20 | F4: =VLOOKUP(A4,horses!A:D,3,FALSE) -> 99 | G4: 0 | H4: 2 | I4: 0 | J4: 400 | L4: =INDIRECT(ADDRESS(RANDBETWEEN(2,horses!$G$19),1,1,1,"horses"),TRUE) -> Sneak Preview | M4: 31.09090909 | P4: =VLOOKUP(A4,horses!A:E,5,FALSE) -> 47 | R4: -0.1271461595 | S4: 0.449412359 | T4: 0.550587641 | U4: 0.1358867936 | V4: 8 | W4: 5 | X4: 1 | Y4: 1 | Z4: 0
A5: Beach | B5: 0 | C5: 399 | D5: =VLOOKUP(A5,horses!A:D,4,FALSE) -> S | E5: =VLOOKUP(A5,horses!A:D,2,FALSE) -> 18 | F5: =VLOOKUP(A5,horses!A:D,3,FALSE) -> 70 | G5: 0 | H5: 1 | I5: 0 | J5: 400 | L5: =INDIRECT(ADDRESS(RANDBETWEEN(2,horses!$G$19),1,1,1,"horses"),TRUE) -> Adrian | M5: 83.6 | P5: =VLOOKUP(A5,horses!A:E,5,FALSE) -> 65.55555556 | R5: 0.9791773349 | S5: 0.8362538173 | T5: 0.1637461827 | U5: 0.04041308246 | V5: 25 | W5: 10 | X5: 0 | Y5: 1 | Z5: 0
A6: Miscief | B6: 0 | C6: 400 | D6: =VLOOKUP(A6,horses!A:D,4,FALSE) -> S | E6: =VLOOKUP(A6,horses!A:D,2,FALSE) -> 25 | F6: =VLOOKUP(A6,horses!A:D,3,FALSE) -> 78 | G6: 0 | H6: 2 | I6: 0 | J6: 400 | L6: =INDIRECT(ADDRESS(RANDBETWEEN(2,horses!$G$19),1,1,1,"horses"),TRUE) -> Shizsaad | M6: 24.3 | P6: =VLOOKUP(A6,horses!A:E,5,FALSE) -> 38 | R6: =STANDARDIZE(P6,$P$11,$P$12) -> -0.6637461777 | S6: 0.2534263894 | T6: 0.7465736106 | U6: 0.1842567588 | V6: 6 | W6: 4 | X6: 1 | Y6: 1 | Z6: 0
A7: Text | B7: 0 | C7: 400 | D7: =VLOOKUP(A7,horses!A:D,4,FALSE) -> S | E7: =VLOOKUP(A7,horses!A:D,2,FALSE) -> 23 | F7: =VLOOKUP(A7,horses!A:D,3,FALSE) -> 80 | G7: 0 | H7: 3 | I7: 0 | J7: 400 | L7: =INDIRECT(ADDRESS(RANDBETWEEN(2,horses!$G$19),1,1,1,"horses"),TRUE) -> Daddy's Overdraft | M7: 30.5 | P7: =VLOOKUP(A7,horses!A:E,5,FALSE) -> 42.89855072 | R7: -0.3716836879 | S7: 0.3550641857 | T7: 0.6449358143 | U7: 0.159172225 | V7: 7 | W7: 4 | X7: 1 | Y7: 1 | Z7: 1
A8: Tronto | B8: 0 | C8: 400 | D8: =VLOOKUP(A8,horses!A:D,4,FALSE) -> S | E8: =VLOOKUP(A8,horses!A:D,2,FALSE) -> 15 | F8: =VLOOKUP(A8,horses!A:D,3,FALSE) -> 90 | G8: 0 | H8: 4 | I8: 0 | J8: 400 | L8: =INDIRECT(ADDRESS(RANDBETWEEN(2,horses!$G$19),1,1,1,"horses"),TRUE) -> Look At me Go | M8: 64.5 | P8: =VLOOKUP(A8,horses!A:E,5,FALSE) -> 76.66666667 | R8: 1.641646493 | S8: 0.9496683568 | T8: 0.0503316432 | U8: 0.01242201078 | V8: 81 | W8: 33 | X8: 0 | Y8: 4 | Z8: 0
A9: Avenger | B9: 0 | C9: 400 | D9: =VLOOKUP(A9,horses!A:D,4,FALSE) -> D | E9: =VLOOKUP(A9,horses!A:D,2,FALSE) -> 26 | F9: =VLOOKUP(A9,horses!A:D,3,FALSE) -> 117 | G9: 0 | H9: 3 | I9: 0 | J9: 400 | L9: =INDIRECT(ADDRESS(RANDBETWEEN(2,horses!$G$19),1,1,1,"horses"),TRUE) -> Cavier | M9: 29.92 | P9: =VLOOKUP(A9,horses!A:E,5,FALSE) -> 22.53846154 | R9: -1.585597491 | S9: 0.05641532287 | T9: 0.9435846771 | U9: 0.2328797211 | V9: 5 | W9: 3 | X9: 1 | Y9: 1 | Z9: 1
A11: =A2 -> Perfect Winter | B11: =C2 -> 400 | P11: =AVERAGE(P2:P9) -> 49.13252962
A12: =A3 -> Foxy | B12: =C3 -> 400 | P12: =STDEV(P2:P9) -> 16.77226928
A13: Arial | B13: 400
A14: Beach | B14: 399
A15: Miscief | B15: 400
A16: Text | B16: 400
A17: Tronto | B17: 400
A18: Avenger | B18: 400
A19: BETS | B19: Odds | C19: Time | D19: Position
A20: =A11 -> Perfect Winter | B20: =W2 -> 5 | C20: =M2 -> 79.8 | D20: =RANK(C20,$C$20:$C$27,1) -> 7
A21: =A12 -> Foxy | B21: =W3 -> 3 | C21: =M3 -> 58 | D21: =RANK(C21,$C$20:$C$27,1) -> 5
A22: Arial | B22: 5 | C22: 31.09090909 | D22: 4
A23: Beach | B23: 10 | C23: 83.6 | D23: 8
A24: Miscief | B24: 4 | C24: 24.3 | D24: 1
A25: Text | B25: 4 | C25: 30.5 | D25: 3
A26: Tronto | B26: 33 | C26: 64.5 | D26: 6
A27: Avenger | B27: 3 | C27: 29.92 | D27: 2
B28: Payout | D28: =D20*$A$29*$B$20+D21*$A$30*$B$21+D22*$A$31*$B$22+D23*$A$32*$B$23+D24*$A$33*$B$24+D25*$A$34*$B$25+D26*$A$35*$B$26+D27*$A$36*$B$27 -> 11 | E28: =E20*$A$29*$B$20+E21*$A$30*$B$21+E22*$A$31*$B$22+E23*$A$32*$B$23+E24*$A$33*$B$24+E25*$A$34*$B$25+E26*$A$35*$B$26+E27*$A$36*$B$27 -> 0 | F28: 0 | G28: 0 | H28: 0 | I28: 0 | J28: 0 | K28: 0 | L28: 0 | M28: 0 | N28: 0 | O28: 0 | P28: 0
A29: =IF(RANK(C20,$C$20:$C$27,1)=1,1,IF(RANK(C20,$C$20:$C$27,1)=2,0.5,IF(RANK(C20,$C$20:$C$27,1)=3,1/3,0))) -> 0 | D29: *1st place: full payout; 2nd place: 1/2 payout; 3rd place: 1/3 payout
A30: 0
A31: 0
A32: 0
A33: 1
A34: 0.3333333333 | F34: Speed | G34: 0.1
A35: 0 | J35: Enter name in box above then press button
A36: 0.5
C37: Player | E37: =IF(E19=0,"",E19) -> 
C38: Cash | E38: =IFERROR(VLOOKUP(E37,players!$A:$D,2,FALSE),"") ->  | F38: =IFERROR(VLOOKUP(F37,players!$A:$D,2,FALSE),"") ->  | G38: =IFERROR(VLOOKUP(G37,players!$A:$D,2,FALSE),"") ->  | H38: =IFERROR(VLOOKUP(H37,players!$A:$D,2,FALSE),"") ->  | I38: =IFERROR(VLOOKUP(I37,players!$A:$D,2,FALSE),"") ->  | J38: =IFERROR(VLOOKUP(J37,players!$A:$D,2,FALSE),"") ->  | K38: =IFERROR(VLOOKUP(K37,players!$A:$D,2,FALSE),"") ->  | L38: =IFERROR(VLOOKUP(L37,players!$A:$D,2,FALSE),"") ->  | M38: =IFERROR(VLOOKUP(M37,players!$A:$D,2,FALSE),"") ->  | N38: =IFERROR(VLOOKUP(N37,players!$A:$D,2,FALSE),"") ->  | O38: =IFERROR(VLOOKUP(O37,players!$A:$D,2,FALSE),"") ->  | P38: =IFERROR(VLOOKUP(P37,players!$A:$D,2,FALSE),"") -> 
C39: Average Winnings | E39: =IFERROR(VLOOKUP(E19,players!$A:$D,4,FALSE),"") ->  | F39: =IFERROR(VLOOKUP(F19,players!$A:$D,4,FALSE),"") ->  | G39: =IFERROR(VLOOKUP(G19,players!$A:$D,4,FALSE),"") ->  | H39: =IFERROR(VLOOKUP(H19,players!$A:$D,4,FALSE),"") ->  | I39: =IFERROR(VLOOKUP(I19,players!$A:$D,4,FALSE),"") ->  | J39: =IFERROR(VLOOKUP(J19,players!$A:$D,4,FALSE),"") ->  | K39: =IFERROR(VLOOKUP(K19,players!$A:$D,4,FALSE),"") ->  | L39: =IFERROR(VLOOKUP(L19,players!$A:$D,4,FALSE),"") ->  | M39: =IFERROR(VLOOKUP(M19,players!$A:$D,4,FALSE),"") ->  | N39: =IFERROR(VLOOKUP(N19,players!$A:$D,4,FALSE),"") ->  | O39: =IFERROR(VLOOKUP(O19,players!$A:$D,4,FALSE),"") ->  | P39: =IFERROR(VLOOKUP(P19,players!$A:$D,4,FALSE),"") -> 

Sheet players (hidden)
A1: Player | B1: Cash | C1: Number of Bets | D1: Average Winnings | F1: Cash | G1: Number of Bets
A2: TEMPLATE | B2: 1000 | C2: 0 | D2: =IFERROR((B2-1000)/C2,0) -> 0 | F2: =B2+IFERROR(HLOOKUP(A2,'the race'!$D$19:$P$28,10,FALSE),0)-SUM(INDIRECT(ADDRESS(20,IFERROR(MATCH(A2,'the race'!$A$19:$P$19,0),1),1,1,"the race")&":"&ADDRESS(27,IFERROR(MATCH(A2,'the race'!$A$19:$P$19,0),1),1,1),TRUE)) -> 1000 | G2: =C2+IF(COUNTIF('the race'!$D$19:$P$19,players!A2)>0,1,0) -> 0
A3: TEMPLATE | B3: 1000 | C3: 0 | D3: =IFERROR((B3-1000)/C3,0) -> 0 | F3: =B3+IFERROR(HLOOKUP(A3,'the race'!$D$19:$P$28,10,FALSE),0)-SUM(INDIRECT(ADDRESS(20,IFERROR(MATCH(A3,'the race'!$A$19:$P$19,0),1),1,1,"the race")&":"&ADDRESS(27,IFERROR(MATCH(A3,'the race'!$A$19:$P$19,0),1),1,1),TRUE)) -> 1000 | G3: =C3+IF(COUNTIF('the race'!$D$19:$P$19,players!A3)>0,1,0) -> 0
